lending/lending_fUSD_20250429
["ID","MTS","AMOUNT","RATE_DAILY","PERIOD"]
[359348996,1745947854085,-470.0,0.00027944,2]
[359348997,1745947854096,-470.0,0.00027944,2]
[359348998,1745947854106,-326.87636313,0.00027944,2]
[359348999,1745947854115,-257.72024522,0.00027944,2]
[359349000,1745947854125,-591.56515509,0.00027944,2]
[359349001,1745947854134,-430.0,0.00027944,2]
[359349002,1745947854144,-470.0,0.00027944,2]
[359349003,1745947854154,-549.72898036,0.00027944,2]
[359349004,1745947854163,-611.16,0.00027944,2]
[359349005,1745947854172,-489.64,0.00027944,2]
[359349006,1745947854182,-530.0,0.00027944,2]
[359349007,1745947854191,-740.05,0.00027944,2]
[359349008,1745947854200,-470.0,0.00027944,2]
[359349009,1745947854210,-470.0,0.00027944,2]
[359349010,1745947854220,-542.78721608,0.00027944,2]
[359349011,1745947854230,-472.19,0.00027944,2]
[359349012,1745947854239,-470.0,0.00027944,2]
[359349013,1745947854248,-470.0,0.00027944,2]
[359349014,1745947854259,-570.66858809,0.00027944,2]
[359349015,1745947854268,-508.61,0.00027944,2]
[359349016,1745947854277,-530.0,0.00027944,2]
[359349017,1745947854287,-499.01,0.00027944,2]
[359349018,1745947854296,-1000.0,0.00027944,2]
[359349019,1745947854306,-530.0,0.00027944,2]
[359349020,1745947854316,-470.0,0.00027944,2]
[359349021,1745947854325,-566.91,0.00027944,2]
[359349022,1745947854334,-470.0,0.00027944,2]
[359349023,1745947854344,-470.0,0.00027944,2]
[359349024,1745947854353,-470.0,0.00027944,2]
[359349025,1745947854363,-286.49117003,0.00027944,2]
[359349026,1745947854828,-258.80105642,0.00027944,2]
[359349027,1745947854837,-83.06473725,0.00027944,2]
[359349028,1745947855015,-70.74361316,0.00027944,2]
[359349029,1745947855035,-470.0,0.00027671,2]
[359349030,1745947855044,-386.65505437,0.00027944,2]
[359349031,1745947855053,-244.41994663,0.00027944,2]
[359349032,1745947855063,-315.58077684,0.00027944,2]
[359349033,1745947855073,-178.55798765,0.00027944,2]
[359349034,1745947855098,-391.18201235,0.00027944,2]
[359349035,1745947855107,-500.0,0.00027944,2]
[359349036,1745947855117,-535.88,0.00027944,2]
[359349037,1745947855126,-470.0,0.00027944,2]
[359349038,1745947855135,-550.38854166,0.00027944,2]
[359349039,1745947855145,-500.0,0.00027944,2]
[359349040,1745947855155,-243.94221371,0.00027944,2]
[359349041,1745947855167,-6.46407797,0.00027944,2]
[359349042,1745947855176,-424.20285041,0.00027944,2]
[359349043,1745947855531,-112.01711239,0.00027944,2]
[359349044,1745947855542,-49.46747302,0.00027944,2]
[359349045,1745947855558,-494.12208993,0.00027944,2]
[359349046,1745947855567,-543.38235498,0.00027944,2]
[359349047,1745947855577,-547.26361737,0.00027944,2]
[359349048,1745947855586,-106.8678627,0.00027944,2]
[359349049,1745947855785,-1400.0,0.00027239,2]
[359349050,1745947855802,-2099.281093,0.00027239,2]
[359349051,1745947855812,-363.1321373,0.00027944,2]
[359349052,1745947855821,-530.0,0.00027944,2]
[359349053,1745947855830,-536.82691628,0.00027944,2]
[359349054,1745947855839,-470.0,0.00027944,2]
[359349055,1745947855851,-542.11905232,0.00027944,2]
[359349056,1745947855861,-470.0,0.00027944,2]
[359349057,1745947855871,-470.0,0.00027944,2]
[359349058,1745947855880,-470.0,0.00027944,2]
[359349059,1745947855889,-540.9934208,0.00027944,2]
[359349060,1745947855899,-470.0,0.00027944,2]
[359349061,1745947855908,-541.7172596,0.00027944,2]
[359349062,1745947855918,-470.0,0.00027944,2]
[359349063,1745947855927,-554.63034693,0.00027944,2]
[359349064,1745947855936,-564.68003415,0.00027944,2]
[359349065,1745947855945,-470.0,0.00027944,2]
[359349066,1745947855954,-471.92,0.00027944,2]
[359349067,1745947855963,-470.0,0.00027944,2]
[359349068,1745947855972,-470.0,0.00027944,2]
[359349069,1745947855981,-530.0,0.00027944,2]
[359349070,1745947855991,-470.0,0.00027944,2]
[359349071,1745947856002,-470.0,0.00027944,2]
[359349072,1745947856012,-500.0,0.00027944,2]
[359349073,1745947856021,-470.0,0.00027944,2]
[359349074,1745947856031,-470.0,0.00027944,2]
[359349075,1745947856040,-500.0,0.00027944,2]
[359349076,1745947856050,-470.0,0.00027944,2]
[359349077,1745947856060,-470.0,0.00027944,2]
[359349078,1745947856069,-470.0,0.00027944,2]
[359349079,1745947856078,-255.30394645,0.00027944,2]
[359349080,1745947856089,-470.0,0.00027944,2]
[359349081,1745947856099,-470.0,0.00027944,2]
[359349082,1745947856108,-500.0,0.00027944,2]
[359349083,1745947856117,-470.0,0.00027944,2]
[359349084,1745947856127,-591.97,0.00027944,2]
[359349085,1745947856136,-542.13765852,0.00027944,2]
[359349086,1745947856145,-470.0,0.00027944,2]
[359349087,1745947856155,-470.0,0.00027944,2]
[359349088,1745947856164,-500.0,0.00027944,2]
[359349089,1745947856173,-538.63832193,0.00027944,2]
[359349090,1745947856182,-318.65349744,0.00027944,2]
[359349091,1745947856191,-252.61871063,0.00027944,2]
[359349092,1745947856201,-470.0,0.00027944,2]
[359349093,1745947856210,-470.0,0.00027944,2]
[359349094,1745947856220,-500.0,0.00027944,2]
[359349095,1745947856230,-470.0,0.00027944,2]
[359349096,1745947856240,-698.33,0.00027944,2]
[359349097,1745947856250,-470.0,0.00027944,2]
[359349098,1745947856260,-470.0,0.00027944,2]
[359349099,1745947856270,-470.0,0.00027944,2]
[359349100,1745947856280,-530.0,0.00027944,2]
[359349101,1745947856290,-151.11998037,0.00027944,2]
[359349102,1745947856300,-470.0,0.00027944,2]
[359349103,1745947856310,-470.0,0.00027944,2]
[359349104,1745947856319,-470.0,0.00027944,2]
[359349105,1745947856330,-682.18,0.00027944,2]
[359349106,1745947856340,-484.96,0.00027944,2]
[359349107,1745947856350,-1272.68,0.00027944,2]
[359349108,1745947856360,-500.0,0.00027944,2]
[359349109,1745947856370,-470.0,0.00027944,2]
[359349110,1745947856380,-500.0,0.00027944,2]
[359349111,1745947856390,-530.0,0.00027944,2]
[359349112,1745947856399,-470.0,0.00027944,2]
[359349113,1745947856409,-530.0,0.00027944,2]
[359349114,1745947856419,-470.0,0.00027944,2]
[359349115,1745947856428,-470.0,0.00027944,2]
[359349116,1745947856439,-470.0,0.00027944,2]
[359349117,1745947856449,-470.0,0.00027944,2]
[359349118,1745947856459,-500.0,0.00027944,2]
[359349119,1745947856469,-530.0,0.00027944,2]
[359349120,1745947856478,-470.0,0.00027944,2]
[359349121,1745947856488,-470.0,0.00027944,2]
[359349122,1745947856497,-470.0,0.00027944,2]
[359349123,1745947856507,-470.0,0.00027944,2]
[359349124,1745947856516,-321.19764492,0.00027944,2]
[359349125,1745947856525,-470.0,0.00027944,2]
[359349126,1745947856534,-470.0,0.00027944,2]
[359349127,1745947856544,-470.0,0.00027944,2]
[359349128,1745947856553,-470.0,0.00027944,2]
[359349129,1745947856562,-470.0,0.00027944,2]
[359349130,1745947856570,-470.0,0.00027944,2]
[359349131,1745947856579,-470.0,0.00027944,2]
[359349132,1745947856588,-645.48,0.00027944,2]
[359349133,1745947856597,-470.0,0.00027944,2]
[359349134,1745947856608,-470.0,0.00027944,2]
[359349135,1745947856617,-470.0,0.00027944,2]
[359349136,1745947856625,-470.0,0.00027944,2]
[359349137,1745947856635,-764.0,0.00027944,2]
[359349138,1745947856644,-242.01735173,0.00027944,2]
[359349139,1745947856654,-470.0,0.00027944,2]
[359349140,1745947856663,-470.0,0.00027944,2]
[359349141,1745947856672,-470.0,0.00027944,2]
[359349142,1745947856682,-430.0,0.00027944,2]
[359349143,1745947856691,-470.0,0.00027944,2]
[359349144,1745947856700,-537.92578813,0.00027944,2]
[359349145,1745947856709,-515.66305557,0.00027944,2]
[359349146,1745947856719,-394.12742217,0.00027944,2]
[359349147,1745947856728,-470.0,0.00027944,2]
[359349148,1745947856737,-470.0,0.00027944,2]
[359349149,1745947856746,-470.0,0.00027944,2]
[359349150,1745947856755,-589.56,0.00027944,2]
[359349151,1745947856764,-470.0,0.00027944,2]
[359349152,1745947856773,-470.0,0.00027944,2]
[359349153,1745947856781,-573.83,0.00027944,2]
[359349154,1745947856790,-530.0,0.00027944,2]
[359349155,1745947856800,-626.16,0.00027944,2]
[359349156,1745947856809,-470.0,0.00027944,2]
[359349157,1745947856818,-833.53,0.00027944,2]
[359349158,1745947856827,-470.0,0.00027944,2]
[359349159,1745947856837,-521.22,0.00027944,2]
[359349160,1745947856847,-3321.34,0.00027944,2]
[359349161,1745947856857,-875.29,0.00027944,2]
[359349162,1745947856866,-1030.03,0.00027944,2]
[359349163,1745947856876,-470.0,0.00027944,2]
[359349164,1745947856885,-530.0,0.00027944,2]
[359349165,1745947856895,-470.0,0.00027944,2]
[359349166,1745947856904,-470.0,0.00027944,2]
[359349167,1745947856914,-1032.43,0.00027944,2]
[359349168,1745947856923,-751.7,0.00027944,2]
[359349169,1745947856933,-470.0,0.00027944,2]
[359349170,1745947856943,-530.0,0.00027944,2]
[359349171,1745947856952,-542.13113354,0.00027944,2]
[359349172,1745947856962,-470.0,0.00027944,2]
[359349173,1745947856972,-1097.95,0.00027944,2]
[359349174,1745947856981,-470.0,0.00027944,2]
[359349175,1745947856991,-470.0,0.00027944,2]
[359349176,1745947856999,-470.0,0.00027944,2]
[359349177,1745947857008,-795.69,0.00027944,2]
[359349178,1745947857018,-470.0,0.00027944,2]
[359349179,1745947857027,-2406.8,0.00027944,2]
[359349180,1745947857092,-470.0,0.00027944,2]
[359349181,1745947857101,-530.0,0.00027944,2]
[359349182,1745947857110,-470.0,0.00027944,2]
[359349183,1745947857119,-470.0,0.00027944,2]
[359349184,1745947857128,-470.0,0.00027944,2]
[359349185,1745947857137,-932.55,0.00027944,2]
[359349186,1745947857145,-470.0,0.00027944,2]
[359349187,1745947857155,-470.0,0.00027944,2]
[359349188,1745947857164,-508.25,0.00027944,2]
[359349189,1745947857173,-470.0,0.00027944,2]
[359349190,1745947857183,-470.0,0.00027944,2]
[359349191,1745947857192,-934.89,0.00027944,2]
[359349192,1745947857201,-470.0,0.00027944,2]
[359349193,1745947857211,-500.0,0.00027944,2]
[359349194,1745947857220,-470.0,0.00027944,2]
[359349195,1745947857229,-470.0,0.00027944,2]
[359349196,1745947857238,-470.0,0.00027944,2]
[359349197,1745947857247,-2409.88,0.00027944,2]
[359349198,1745947857256,-470.0,0.00027944,2]
[359349199,1745947857265,-3268.4,0.00027944,2]
[359349200,1745947857274,-647.27,0.00027944,2]
[359349201,1745947857283,-470.0,0.00027944,2]
[359349202,1745947857291,-470.0,0.00027944,2]
[359349203,1745947857300,-470.0,0.00027944,2]
[359349204,1745947857308,-470.0,0.00027944,2]
[359349205,1745947857318,-6922.7,0.00027944,2]
[359349206,1745947857328,-642.69,0.00027944,2]
[359349207,1745947857337,-500.0,0.00027944,2]
[359349208,1745947857347,-916.21,0.00027944,2]
[359349209,1745947857356,-470.0,0.00027944,2]
[359349210,1745947857366,-500.0,0.00027944,2]
[359349211,1745947857375,-470.0,0.00027944,2]
[359349212,1745947857384,-470.0,0.00027944,2]
[359349213,1745947857393,-458.60809716,0.00027944,2]
[359349214,1745947857408,-11.39190284,0.00027944,2]
[359349215,1745947857417,-470.0,0.00027944,2]
[359349216,1745947857426,-220.72751089,0.00027944,2]
[359349217,1745947857436,-350.84621515,0.00027944,2]
[359349218,1745947857452,-161.32962463,0.00027944,2]
[359349219,1745947857462,-518.17,0.00027944,2]
[359349220,1745947857471,-500.0,0.00027944,2]
[359349221,1745947857481,-470.0,0.00027944,2]
[359349222,1745947857491,-7070.34,0.00027944,2]
[359349223,1745947857500,-470.0,0.00027944,2]
[359349224,1745947857509,-470.0,0.00027944,2]
[359349225,1745947857519,-39657.03079865,0.00027944,2]
[359349226,1745947857530,-604.79948188,0.00027944,2]
[359349227,1745947857545,-26571.77971947,0.00027944,2]
[359349228,1745947857554,-717.85,0.00027944,2]
[359349229,1745947857563,-470.0,0.00027944,2]
[359349230,1745947857572,-470.0,0.00027944,2]
[359349231,1745947857581,-1310.18,0.00027944,2]
[359349232,1745947857590,-470.0,0.00027944,2]
[359349233,1745947857600,-629.86,0.00027944,2]
[359349234,1745947857611,-8522.3,0.00027944,2]
[359349235,1745947857621,-470.0,0.00027944,2]
[359349236,1745947857630,-358.0,0.00027944,18]
[359349237,1745947857639,-3956.45,0.00027944,2]
[359349238,1745947857648,-470.0,0.00027944,2]
[359349239,1745947857658,-2080.1,0.00027944,2]
[359349240,1745947857667,-611.18,0.00027944,2]
[359349241,1745947857676,-470.0,0.00027945,2]
[359349242,1745947857687,-470.0,0.00027945,2]
[359349243,1745947857695,-470.0,0.00027945,2]
[359349244,1745947857705,-470.0,0.00027945,2]
[359349245,1745947857715,-470.0,0.00027945,2]
[359349246,1745947857727,-470.0,0.00027945,2]
[359349247,1745947857737,-537.18,0.00027945,2]
[359349248,1745947857746,-1034.02,0.00027945,2]
[359349249,1745947857756,-470.0,0.00027945,2]
[359349250,1745947857765,-470.0,0.00027945,2]
[359349251,1745947857775,-470.0,0.00027945,2]
[359349252,1745947857784,-470.0,0.00027945,2]
[359349253,1745947857793,-470.0,0.00027945,2]
[359349254,1745947857802,-470.0,0.00027945,2]
[359349255,1745947857811,-470.0,0.00027945,2]
[359349256,1745947857821,-470.0,0.00027945,2]
[359349257,1745947857830,-470.0,0.00027945,2]
[359349258,1745947857840,-470.0,0.00027945,2]
[359349259,1745947857851,-470.0,0.00027945,2]
[359349260,1745947857860,-470.0,0.00027945,2]
[359349261,1745947857871,-470.0,0.00027945,2]
[359349262,1745947857880,-470.0,0.00027945,2]
[359349263,1745947857890,-470.0,0.00027945,2]
[359349264,1745947857899,-517.81,0.00027945,2]
[359349265,1745947857908,-470.0,0.00027945,2]
[359349266,1745947857918,-470.0,0.00027945,2]
[359349267,1745947857929,-1109.71,0.00027945,2]
[359349268,1745947857939,-392.3641614,0.00027945,2]
[359349269,1745947857948,-470.0,0.00027945,2]
[359349270,1745947857957,-470.0,0.00027945,2]
[359349271,1745947857966,-470.0,0.00027945,2]
[359349272,1745947857976,-470.0,0.00027945,2]
[359349273,1745947857985,-470.0,0.00027945,2]
[359349274,1745947857996,-470.0,0.00027945,2]
[359349275,1745947858005,-470.0,0.00027945,2]
[359349276,1745947858015,-470.0,0.00027945,2]
[359349277,1745947858025,-470.0,0.00027945,2]
[359349278,1745947858035,-470.0,0.00027945,2]
[359349279,1745947858045,-636.53,0.00027945,2]
[359349280,1745947858055,-523.07,0.00027945,2]
[359349281,1745947858065,-553.92456692,0.00027945,2]
[359349282,1745947858075,-470.0,0.00027945,2]
[359349283,1745947858085,-470.0,0.00027945,2]
[359349284,1745947858095,-470.0,0.00027945,2]
[359349285,1745947858104,-508.95882615,0.00027945,2]
[359349286,1745947858113,-250.58283651,0.00027945,2]
[359349287,1745947858122,-151.44,0.00027945,2]
[359349288,1745947858132,-470.0,0.00027945,2]
[359349289,1745947858142,-595.02,0.00027945,2]
[359349290,1745947858151,-942.24,0.00027945,2]
[359349291,1745947858160,-470.0,0.00027945,2]
[359349292,1745947858170,-470.0,0.00027945,2]
[359349293,1745947858179,-960.77,0.00027945,2]
[359349294,1745947858188,-470.0,0.00027945,2]
[359349295,1745947858198,-470.0,0.00027945,2]
[359349296,1745947858208,-470.0,0.00027945,2]
[359349297,1745947858217,-452.46048852,0.00027945,2]
[359349298,1745947858226,-658.13,0.00027945,2]
[359349299,1745947858235,-2592.39,0.00027945,2]
[359349300,1745947858246,-542.54,0.00027945,2]
[359349301,1745947858255,-1574.79,0.00027945,2]
[359349302,1745947858265,-419.34717166,0.00027945,2]
[359349303,1745947858274,-470.0,0.00027945,2]
[359349304,1745947858284,-470.0,0.00027945,2]
[359349305,1745947858294,-470.0,0.00027945,2]
[359349306,1745947858303,-470.0,0.00027945,2]
[359349307,1745947858312,-290.95,0.00027945,2]
[359349308,1745947858321,-2775.44,0.00027945,2]
[359349309,1745947858331,-581.1,0.00027945,2]
[359349310,1745947858340,-470.0,0.00027945,2]
[359349311,1745947858350,-470.0,0.00027945,2]
[359349312,1745947858359,-470.0,0.00027945,2]
[359349313,1745947858368,-470.0,0.00027945,2]
[359349314,1745947858378,-470.4,0.00027945,2]
[359349315,1745947858387,-470.0,0.00027945,2]
[359349316,1745947858397,-470.0,0.00027945,2]
[359349317,1745947858406,-487.16,0.00027945,2]
[359349318,1745947858415,-6704.709698,0.00027945,2]
[359349319,1745947858424,-470.0,0.00027945,2]
[359349320,1745947858433,-470.0,0.00027945,2]
[359349321,1745947858442,-470.0,0.00027945,2]
[359349322,1745947858451,-426.26168689,0.00027945,2]
[359349323,1745947858460,-470.0,0.00027945,2]
[359349324,1745947858470,-470.0,0.00027945,2]
[359349325,1745947858479,-470.0,0.00027945,2]
[359349326,1745947858488,-741.751675,0.00027945,2]
[359349327,1745947858497,-470.0,0.00027945,2]
[359349328,1745947858506,-500.0,0.00027945,2]
[359349329,1745947858515,-500.42,0.00027945,2]
[359349330,1745947858525,-499.51,0.00027945,2]
[359349331,1745947858535,-492.205473,0.00027945,2]
[359349332,1745947858544,-470.0,0.00027945,2]
[359349333,1745947858552,-526.98,0.00027945,2]
[359349334,1745947858562,-588.92,0.00027945,2]
[359349335,1745947858571,-470.0,0.00027945,2]
[359349336,1745947858579,-470.0,0.00027945,2]
[359349337,1745947858588,-470.0,0.00027945,2]
[359349338,1745947858596,-619.94,0.00027945,2]
[359349339,1745947858605,-470.0,0.00027945,2]
[359349340,1745947858617,-583.59,0.00027945,2]
[359349341,1745947858626,-750.5,0.00027945,2]
[359349342,1745947858635,-470.0,0.00027945,2]
[359349343,1745947858644,-697.9,0.00027945,2]
[359349344,1745947858654,-470.0,0.00027945,2]
[359349345,1745947858663,-587.33,0.00027945,2]
[359349346,1745947858673,-470.0,0.00027945,2]
[359349347,1745947858683,-470.0,0.00027945,2]
[359349348,1745947858693,-1199.7,0.00027945,2]
[359349349,1745947858703,-176.88,0.00027945,2]
[359349350,1745947858714,-500.0,0.00027945,2]
[359349351,1745947858724,-592.04,0.00027945,2]
[359349352,1745947858734,-470.0,0.00027945,2]
[359349353,1745947858743,-555.67,0.00027945,2]
[359349354,1745947858752,-160.44906423,0.00027945,2]
[359349355,1745947858761,-596.34,0.00027945,2]
[359349356,1745947858770,-470.0,0.00027945,2]
[359349357,1745947858780,-470.0,0.00027945,2]
[359349358,1745947858789,-522.57,0.00027945,2]
[359349359,1745947858799,-470.0,0.00027945,2]
[359349360,1745947858808,-1756.82,0.00027945,2]
[359349361,1745947858816,-301.63578405,0.00027945,2]
[359349362,1745947858825,-470.0,0.00027945,2]
[359349363,1745947858835,-470.0,0.00027945,2]
[359349364,1745947858844,-245.34,0.00027945,2]
[359349365,1745947858853,-470.0,0.00027945,2]
[359349366,1745947858861,-470.0,0.00027945,2]
[359349367,1745947858870,-470.0,0.00027945,2]
[359349368,1745947858879,-470.0,0.00027945,2]
[359349369,1745947858889,-470.0,0.00027945,2]
[359349370,1745947858898,-717.9,0.00027945,2]
[359349371,1745947858908,-662.53,0.00027945,2]
[359349372,1745947858917,-470.0,0.00027945,2]
[359349373,1745947858926,-470.0,0.00027945,2]
[359349374,1745947858936,-756.04,0.00027945,2]
[359349375,1745947858945,-470.0,0.00027945,2]
[359349376,1745947858954,-669.21,0.00027945,2]
[359349377,1745947858963,-500.0,0.00027945,2]
[359349378,1745947858973,-500.0,0.00027945,2]
[359349379,1745947858982,-470.0,0.00027945,2]
[359349380,1745947858992,-170.352363,0.00027945,7]
[359349381,1745947859001,-2233.17,0.00027945,2]
[359349382,1745947859011,-470.0,0.00027945,2]
[359349383,1745947859020,-1144.68,0.00027945,2]
[359349384,1745947859029,-470.0,0.00027945,2]
[359349385,1745947859038,-470.0,0.00027945,2]
[359349386,1745947859047,-470.0,0.00027945,2]
[359349387,1745947859057,-470.0,0.00027945,2]
[359349388,1745947859066,-622.26,0.00027945,2]
[359349389,1745947859075,-470.0,0.00027945,2]
[359349390,1745947859085,-2044.04,0.00027945,2]
[359349391,1745947859094,-470.0,0.00027945,2]
[359349392,1745947859104,-759.73,0.00027945,2]
[359349393,1745947859113,-470.0,0.00027945,2]
[359349394,1745947859122,-470.0,0.00027945,2]
[359349395,1745947859131,-470.0,0.00027945,2]
[359349396,1745947859141,-1771.82,0.00027945,2]
[359349397,1745947859150,-1142.46,0.00027945,2]
[359349398,1745947859160,-2286.71,0.00027945,2]
[359349399,1745947859169,-526.05,0.00027945,2]
[359349400,1745947859179,-550.32,0.00027945,2]
[359349401,1745947859188,-470.0,0.00027945,2]
[359349402,1745947859197,-470.0,0.00027945,2]
[359349403,1745947859207,-470.0,0.00027945,2]
[359349404,1745947859217,-470.0,0.00027945,2]
[359349405,1745947859227,-521.12,0.00027945,2]
[359349406,1745947859237,-470.0,0.00027945,2]
[359349407,1745947859247,-470.0,0.00027945,2]
[359349408,1745947859257,-746.75,0.00027945,2]
[359349409,1745947859267,-470.0,0.00027945,2]
[359349410,1745947859277,-470.0,0.00027945,2]
[359349411,1745947859287,-470.0,0.00027945,2]
[359349412,1745947859296,-649.36,0.00027945,2]
[359349413,1745947859306,-470.0,0.00027945,2]
[359349414,1745947859316,-470.0,0.00027945,2]
[359349415,1745947859326,-215.95,0.00027945,2]
[359349416,1745947859335,-470.0,0.00027945,2]
[359349417,1745947859345,-470.0,0.00027945,2]
[359349418,1745947859355,-801.87,0.00027945,2]
[359349419,1745947859365,-485.94,0.00027945,2]
[359349420,1745947859375,-470.0,0.00027945,2]
[359349421,1745947859386,-940.45,0.00027945,2]
[359349422,1745947859396,-1248.6,0.00027945,2]
[359349423,1745947859406,-1984.52,0.00027945,2]
[359349424,1745947859416,-470.0,0.00027945,2]
[359349425,1745947859427,-470.0,0.00027945,2]
[359349426,1745947859438,-470.0,0.00027945,2]
[359349427,1745947859447,-470.0,0.00027945,2]
[359349428,1745947859457,-470.0,0.00027945,2]
[359349429,1745947859467,-470.0,0.00027945,2]
[359349430,1745947859477,-2689.55,0.00027945,2]
[359349431,1745947859487,-470.0,0.00027945,2]
[359349432,1745947859496,-612.17,0.00027945,2]
[359349433,1745947859506,-1290.09,0.00027945,2]
[359349434,1745947859515,-470.0,0.00027945,2]
[359349435,1745947859525,-482.89,0.00027945,2]
[359349436,1745947859534,-639.76,0.00027945,2]
[359349437,1745947859542,-470.0,0.00027945,2]
[359349438,1745947859552,-1567.25,0.00027945,2]
[359349439,1745947859561,-502.53,0.00027945,2]
[359349440,1745947859571,-593.25,0.00027945,2]
[359349441,1745947859581,-470.0,0.00027945,2]
[359349442,1745947859591,-470.0,0.00027945,2]
[359349443,1745947859602,-470.0,0.00027945,2]
[359349444,1745947859614,-470.0,0.00027945,2]
[359349445,1745947859624,-470.0,0.00027945,2]
[359349446,1745947859633,-610.7,0.00027945,2]
[359349447,1745947859643,-917.53,0.00027945,2]
[359349448,1745947859655,-470.0,0.00027945,2]
[359349449,1745947859664,-470.0,0.00027945,2]
[359349450,1745947859674,-470.0,0.00027945,2]
[359349451,1745947859685,-924.42,0.00027945,2]
[359349452,1745947859695,-470.0,0.00027945,2]
[359349453,1745947859704,-470.0,0.00027945,2]
[359349454,1745947859714,-530.86,0.00027945,2]
[359349455,1745947859723,-530.91,0.00027945,2]
[359349456,1745947859733,-599.42,0.00027945,2]
[359349457,1745947859743,-895.03,0.00027945,2]
[359349458,1745947859752,-745.63,0.00027945,2]
[359349459,1745947859762,-470.0,0.00027945,2]
[359349460,1745947859772,-470.0,0.00027945,2]
[359349461,1745947859782,-542.1,0.00027945,2]
[359349462,1745947859791,-480.66,0.00027945,2]
[359349463,1745947859801,-470.0,0.00027945,2]
[359349464,1745947859811,-553.82,0.00027945,2]
[359349465,1745947859820,-525.51,0.00027945,2]
[359349466,1745947859830,-588.9,0.00027945,2]
[359349467,1745947859840,-909.25,0.00027945,2]
[359349468,1745947859851,-470.0,0.00027945,2]
[359349469,1745947859860,-470.0,0.00027945,2]
[359349470,1745947859870,-470.0,0.00027945,2]
[359349471,1745947859880,-519.53,0.00027945,2]
[359349472,1745947859889,-631.56,0.00027945,2]
[359349473,1745947859900,-470.0,0.00027945,2]
[359349474,1745947859910,-652.59,0.00027945,2]
[359349475,1745947859919,-576.67,0.00027945,2]
[359349476,1745947859929,-533.02,0.00027945,2]
[359349477,1745947859939,-470.0,0.00027945,2]
[359349478,1745947859948,-579.51,0.00027945,2]
[359349479,1745947859958,-633.49,0.00027945,2]
[359349480,1745947859968,-813.16,0.00027945,2]
[359349481,1745947859977,-500.13,0.00027945,2]
[359349482,1745947859985,-470.0,0.00027945,2]
[359349483,1745947859994,-525.37,0.00027945,2]
[359349484,1745947860003,-734.3,0.00027945,2]
[359349485,1745947860013,-1226.23,0.00027945,2]
[359349486,1745947860025,-553.62,0.00027945,2]
[359349487,1745947860034,-470.0,0.00027945,2]
[359349488,1745947860044,-483.13,0.00027945,2]
[359349489,1745947860054,-529.48,0.00027945,2]
[359349490,1745947860064,-649.88,0.00027945,2]
[359349491,1745947860074,-470.0,0.00027945,2]
[359349492,1745947860084,-598.75435531,0.00027945,2]
[359349493,1745947860095,-470.0,0.00027945,2]
[359349494,1745947860105,-13611.83,0.00027945,2]
[359349495,1745947860114,-470.0,0.00027945,2]